lending/lending_fUSD_20251020
["ID","MTS","AMOUNT","RATE_DAILY","PERIOD"]
[391859328,1760928197959,-200.0,0.00013699,2]
[391859329,1760928331145,-276.13964955,0.00013567,2]
[391859330,1760928375273,-230.99035045,0.00013567,2]
[391859331,1760928375294,-96.88581594,0.00013699,2]
[391859332,1760928375315,-39.37777822,0.00013735,2]
[391859333,1760928377823,-379.71,0.00013735,2]
[391859334,1760928395196,200.0,0.00012313,2]
[391859336,1760928495356,-2080.91222178,0.00013735,2]
[391859337,1760928495379,-428.17450032,0.00013735,2]
[391859338,1760928495402,-202.6649403,0.00013748,2]
[391859339,1760928497911,-379.71,0.00013748,2]
[391859341,1760928570534,163.92668416,0.00012,5]
[391859349,1760928632345,-1917.6250597,0.00013748,2]
[391859351,1760928632356,-116.5182333,0.00013748,2]
[391859357,1760928632417,-183.4817667,0.00013748,2]
[391859359,1760928632426,-195.0,0.00013762,2]
[391859361,1760928632436,-569.71157097,0.00013778,2]
[391859363,1760928632445,-449.33389637,0.00013778,2]
[391859365,1760928632454,-767.65,0.0001379,2]
[391859367,1760928632463,-300.0,0.00013801,2]
[391859368,1760928632473,-203.61716493,0.00013815,2]
[391859370,1760928632482,-1200.0,0.00013833,2]
[391859371,1760928632491,-300.0,0.00013878,2]
[391859372,1760928632501,-1792.11,0.00013879,2]
[391859373,1760928632510,-250.0,0.00014017,2]
[391859374,1760928632519,-4060.62,0.00014077,2]
[391859375,1760928632529,-1662.0,0.0001409,2]
[391859376,1760928632538,-167.47,0.00014091,2]
[391859378,1760928632548,-1459.0,0.00014146,2]
[391859380,1760928632559,-1662.0,0.00014178,2]
[391859382,1760928632569,-1662.0,0.00014197,2]
[391859383,1760928632578,-183.49675954,0.00014224,2]
[391859384,1760928632591,-225.4948175,0.00014224,2]
[391859385,1760928632600,-500.0,0.00014229,2]
[391859386,1760928632610,-500.0,0.00014229,2]
[391859387,1760928632620,-518.229055,0.00014229,2]
[391859388,1760928632630,-294.51717338,0.00014229,2]
[391859389,1760928632639,-500.0,0.00014229,2]
[391859390,1760928632649,-500.0,0.00014229,2]
[391859391,1760928632659,-508.50097622,0.00014229,2]
[391859392,1760928632668,-500.0,0.00014229,2]
[391859393,1760928632678,-500.0,0.00014229,2]
[391859394,1760928632687,-500.0,0.00014229,2]
[391859395,1760928632698,-500.0,0.00014229,2]
[391859396,1760928632707,-348.21906666,0.00014229,2]
[391859397,1760928632716,-500.0,0.00014229,2]
[391859398,1760928632726,-500.0,0.00014229,2]
[391859399,1760928632735,-500.0,0.00014229,2]
[391859400,1760928632744,-163.26006984,0.00014229,2]
[391859401,1760928632754,-500.0,0.00014229,2]
[391859402,1760928632764,-500.0,0.00014229,2]
[391859403,1760928632773,-500.0,0.00014229,2]
[391859404,1760928632782,-500.0,0.00014229,2]
[391859405,1760928632792,-500.0,0.00014229,2]
[391859406,1760928632803,-500.0,0.00014229,2]
[391859407,1760928632812,-150.0,0.0001423,2]
[391859408,1760928632822,-513.09483795,0.00014233,2]
[391859409,1760928632831,-500.0,0.00014233,2]
[391859410,1760928632840,-573.8976808,0.00014233,2]
[391859411,1760928632850,-578.20924308,0.00014233,2]
[391859412,1760928632860,-500.0,0.00014233,2]
[391859413,1760928632869,-567.20985909,0.00014233,2]
[391859414,1760928632878,-500.0,0.00014233,2]
[391859415,1760928632888,-500.0,0.00014233,2]
[391859416,1760928632897,-500.0,0.00014233,2]
[391859417,1760928632907,-500.0,0.00014233,2]
[391859418,1760928632921,-500.0,0.00014233,2]
[391859419,1760928632930,-500.0,0.00014233,2]
[391859420,1760928632939,-500.0,0.00014233,2]
[391859421,1760928632949,-500.0,0.00014233,2]
[391859422,1760928632958,-500.0,0.00014233,2]
[391859423,1760928632967,-500.0,0.00014233,2]
[391859424,1760928632976,-500.0,0.00014233,2]
[391859425,1760928632986,-1000.0,0.00014233,2]
[391859426,1760928632996,-1090.43799744,0.00014233,2]
[391859427,1760928633005,-507.64399364,0.000143,2]
[391859428,1760928633014,-500.0,0.000143,2]
[391859429,1760928633024,-500.0,0.000143,2]
[391859430,1760928633033,-500.0,0.000143,2]
[391859431,1760928633043,-500.0,0.000143,2]
[391859432,1760928633055,-502.37096136,0.000143,2]
[391859433,1760928633064,-502.72287121,0.000143,2]
[391859434,1760928633074,-500.0,0.000143,2]
[391859435,1760928633083,-1471.0,0.00014519,2]
[391859436,1760928633092,-333.66,0.00014531,2]
[391859437,1760928633101,-250.0,0.00014589,7]
[391859438,1760928633111,-1471.0,0.00014707,2]
[391859439,1760928633120,-890.62217382,0.00014729,2]
[391859440,1760928633129,-3622.0,0.00014777,2]
[391859441,1760928633139,-1471.0,0.00014785,2]
[391859442,1760928633149,-1000.0,0.000148,2]
[391859443,1760928633158,-4056.8615,0.000148,2]
[391859444,1760928633168,-2134.9934,0.000148,2]
[391859445,1760928633177,-2500.0,0.000148,2]
[391859446,1760928633186,-1471.0,0.00014811,2]
[391859447,1760928633196,-1471.0,0.0001482,2]
[391859448,1760928633205,-1471.0,0.00014821,2]
[391859449,1760928633217,-1000.0,0.00014848,2]
[391859450,1760928633226,-1000.0,0.00014848,2]
[391859451,1760928633235,-304.58922137,0.00014848,2]
[391859452,1760928633245,-192.88334597,0.00014848,2]
[391859453,1760928633254,-505.54377894,0.00014848,2]
[391859454,1760928633263,-159.93258741,0.0001485,2]
[391859455,1760928633273,-1000.0,0.00014879,2]
[391859456,1760928633282,-168.0,0.00014893,2]
[391859457,1760928633292,-1471.0,0.00014897,2]
[391859458,1760928633302,-500.0,0.00014899,2]
[391859459,1760928633311,-182.84130309,0.00014899,2]
[391859460,1760928633320,-190.90997513,0.00014899,2]
[391859461,1760928633329,-181.28345119,0.00014899,2]
[391859462,1760928633339,-298.22936789,0.00014899,2]
[391859463,1760928633348,-500.0,0.00014899,2]
[391859464,1760928633358,-576.7458,0.000149,2]
[391859465,1760928633367,-20272.178,0.000149,2]
[391859466,1760928633377,-278.8137,0.000149,2]
[391859467,1760928633387,-3219.2613,0.000149,2]
[391859468,1760928633396,-5000.0,0.000149,2]
[391859469,1760928633405,-191.42716923,0.000149,2]
[391859470,1760928633415,-107983.71969142,0.000149,2]
[391859471,1760928633440,-500.0,0.00014229,2]
[391859472,1760928633450,-399.85612435,0.000149,2]
[391859473,1760928633482,-500.0,0.00014229,2]
[391859474,1760928633491,-25.74328535,0.000149,2]
[391859475,1760928633502,-578.1981307,0.000149,2]
[391859477,1760928638081,-500.0,0.00014229,2]
[391859478,1760928638091,-500.0,0.00014229,2]
[391859479,1760928638100,-500.0,0.00014229,2]
[391859480,1760928638110,-500.0,0.00014229,2]
[391859481,1760928638120,-3367.5,0.000149,2]
[391859485,1760928640603,-1.6e-07,0.000149,2]
[391859486,1760928640619,-343.60515473,0.000149,2]
[391859487,1760928640630,-560.22500006,0.000149,2]
[391859488,1760928640640,-2724.5832564,0.000149,2]
[391859489,1760928640651,-84579.14991118,0.000149,2]
[391859490,1760928640660,-202.83885649,0.000149,2]
[391859491,1760928640671,-544.62472245,0.00014923,2]
[391859492,1760928640681,-280.38536345,0.00014923,2]
[391859493,1760928640691,-300.0,0.00014923,2]
[391859494,1760928640700,-2500.0,0.00014923,2]
[391859495,1760928640709,-300.0,0.00014923,2]
[391859496,1760928640719,-151.0,0.00014927,2]
[391859497,1760928640728,-151.0,0.0001493,2]
[391859498,1760928640737,-151.0,0.0001493,2]
[391859499,1760928640747,-151.0,0.00014931,2]
[391859500,1760928640756,-1471.0,0.0001494,2]
[391859501,1760928640766,-459.81,0.00014945,2]
[391859502,1760928640778,-301.0,0.00014945,2]
[391859503,1760928640789,-315.05447608,0.0001495,2]
[391859504,1760928640800,-500.0,0.00014973,2]
[391859505,1760928640812,-500.0,0.00014973,2]
[391859506,1760928640821,-307.76958963,0.00014973,2]
[391859507,1760928640830,-500.0,0.00014973,2]
[391859508,1760928640839,-500.0,0.00014973,2]
[391859509,1760928640849,-500.0,0.00014973,2]
[391859510,1760928640858,-500.0,0.00014973,2]
[391859511,1760928640867,-500.0,0.00014973,2]
[391859512,1760928640877,-174.63789029,0.00014973,2]
[391859513,1760928640886,-500.0,0.00014973,2]
[391859514,1760928640895,-500.0,0.00014973,2]
[391859515,1760928640904,-500.0,0.00014973,2]
[391859516,1760928640913,-500.22847294,0.00014973,2]
[391859517,1760928640922,-500.0,0.00014973,2]
[391859518,1760928640931,-391.62205966,0.00014973,2]
[391859519,1760928640940,-500.61510315,0.00014973,2]
[391859520,1760928641088,-504.89921637,0.00014973,2]
[391859521,1760928641098,-500.79463278,0.00014973,2]
[391859522,1760928641107,-500.0,0.00014973,2]
[391859523,1760928641117,-501.45178772,0.00014973,2]
[391859524,1760928641127,-502.09173737,0.00014973,2]
[391859525,1760928641136,-524.2530152,0.00014973,2]
[391859526,1760928641146,-500.0,0.00014973,2]
[391859527,1760928641155,-326.99357709,0.00014973,2]
[391859528,1760928641164,-500.0,0.00014973,2]
[391859529,1760928641173,-500.0,0.00014973,2]
[391859530,1760928641183,-500.0,0.00014973,2]
[391859531,1760928641194,-501.54048659,0.00014973,2]
[391859532,1760928641205,-420.52943158,0.00014973,2]
[391859533,1760928641220,-500.0,0.00014973,2]
[391859534,1760928641230,-500.0,0.00014973,2]
[391859535,1760928641241,-500.0,0.00014973,2]
[391859536,1760928641251,-500.0,0.00014973,2]
[391859537,1760928641260,-500.0,0.00014973,2]
[391859538,1760928641269,-500.0,0.00014973,2]
[391859539,1760928641279,-1718.88,0.00014973,2]
[391859540,1760928641288,-516.55015126,0.00014978,2]
[391859541,1760928641297,-504.6095674,0.00014978,2]
[391859542,1760928641306,-508.53705905,0.00014978,2]
[391859543,1760928641319,-500.0,0.00014978,2]
[391859544,1760928641328,-3622.0,0.00014985,2]
[391859545,1760928641337,-194.88532088,0.0001499,2]
[391859546,1760928641346,-577.00214916,0.00014998,2]
[391859547,1760928641356,-155.29055034,0.00014999,2]
[391859548,1760928641366,-150.0,0.00014999,2]
[391859549,1760928641375,-708.0,0.00014999,2]
[391859550,1760928641385,-896.0,0.00014999,2]
[391859551,1760928641395,-261.99522517,0.00014999,2]
[391859552,1760928641405,-150.0,0.00014999,2]
[391859553,1760928641414,-500.0,0.00014999,2]
[391859554,1760928641423,-217.50064222,0.00014999,2]
[391859555,1760928641433,-500.0,0.00014999,2]
[391859556,1760928641442,-500.0,0.00014999,2]
[391859557,1760928641451,-513.0,0.00014999,2]
[391859558,1760928641460,-156.01180563,0.00014999,2]
[391859559,1760928641470,-500.0,0.00014999,2]
[391859560,1760928641479,-150.63504133,0.00014999,2]
[391859561,1760928641488,-152.43104566,0.00014999,2]
[391859562,1760928641497,-279.1412531,0.00014999,2]
[391859563,1760928641506,-150.0,0.00014999,2]
[391859564,1760928641515,-500.0,0.00014999,2]
[391859565,1760928641524,-150.0,0.00014999,2]
[391859566,1760928641533,-150.0,0.00014999,2]
[391859567,1760928641542,-180.25895296,0.00014999,2]
[391859568,1760928641551,-643.0,0.00014999,2]
[391859569,1760928641561,-500.0,0.00014999,2]
[391859570,1760928641570,-500.0,0.00014999,2]
[391859571,1760928641580,-161.81214183,0.00014999,2]
[391859572,1760928641589,-1626551.70760036,0.00015,2]
[391859579,1760928646078,-500.0,0.00014229,2]
[391859580,1760928646088,-108.21731146,0.00014973,2]
[391859656,1760929380354,-209.25844635,0.00013652,2]
[391859657,1760929384671,-164.99583669,0.00013652,2]
[391859658,1760929388474,-227.50934178,0.00013652,2]
[391859659,1760929390661,-252.26975642,0.00013652,2]
[391859660,1760929392854,-443.253949,0.00013652,2]
[391859661,1760929410977,-202.71266976,0.00013652,2]
[391859662,1760929411003,-166.66,0.00013699,2]
[391859663,1760929411024,-49.08467326,0.00013722,2]
[391859664,1760929413587,-181.36794197,0.00013722,2]
[391859665,1760929415875,-69.54738477,0.00013722,2]
[391859666,1760929415902,-162.85036894,0.00013736,2]
[391859667,1760929418645,157.17,6.81e-05,2]
[391859668,1760929418828,157.17,7.429e-05,2]
[391859669,1760929419090,157.17,8.049e-05,2]
[391859670,1760929419325,157.17,8.668e-05,2]
[391859671,1760929419530,157.17,9.287e-05,2]
[391859672,1760929419732,157.17,9.906e-05,2]
[391859673,1760929419936,157.17,0.00010525,2]
[391859674,1760929420122,157.17,0.00011144,2]
[391859675,1760929420333,157.17,0.00011763,2]
[391859676,1760929420540,157.17,0.00012382,2]
[391859677,1760929420741,157.17,0.00013002,2]
[391859678,1760929455826,-157.17,0.00013621,2]
[391859679,1760929455857,-46.39787244,0.00013736,2]
[391859680,1760929455882,-0.41781854,0.00013737,2]
[391859681,1760929458567,-225.61502637,0.00013737,2]
[391859682,1760929500395,-73.96715509,0.00013737,2]
[391859683,1760929500419,-190.38501043,0.00013737,2]
[391859684,1760929502965,-4.61498957,0.00013737,2]
[391859685,1760929502991,-306.49237626,0.00013754,2]
[391859686,1760929505629,-250.47410012,0.00013754,2]
[391859687,1760929507900,-166.70255021,0.00013754,2]
[391859688,1760929510136,-152.75873485,0.00013754,2]
[391859689,1760929514231,-181.33281669,0.00013754,2]
[391859691,1760929590439,-200.0,0.00013699,2]
[391859692,1760929590461,-110.22959107,0.00013754,2]
[391859693,1760929592045,-229.30216509,0.00013754,2]
[391859694,1760929595052,-208.70089154,0.00013754,2]
[391859695,1760929597158,-388.20148484,0.00013754,2]
[391859696,1760929599356,-201.51742942,0.00013754,2]
[391859697,1760929601104,-304.28785991,0.00013754,2]
[391859698,1760929601129,-0.54291142,0.00013759,2]
[391859741,1760929832158,-299.45708858,0.00013759,2]
[391859742,1760929832167,-1191.26490387,0.00013761,2]
[391859743,1760929832177,-300.0,0.00013761,2]
[391859744,1760929832186,-435.42027378,0.00013763,2]
[391859745,1760929832196,-150.0,0.00013771,2]
[391859746,1760929832205,-2370.24,0.00013807,2]
[391859747,1760929832214,-1200.0,0.00013811,2]
[391859748,1760929832224,-300.0,0.00013812,2]
[391859749,1760929832233,-300.0,0.00013812,2]
[391859750,1760929832242,-23690.29,0.00013813,2]
[391859751,1760929832252,-166.66,0.00013912,2]
[391859752,1760929832262,-165.71,0.00013926,2]
[391859753,1760929832272,-2274.18,0.00013968,2]
[391859754,1760929832281,-10996.54,0.00014124,2]
[391859755,1760929832290,-166.66,0.00014125,2]
[391859756,1760929832299,-150.0,0.00014248,2]
[391859757,1760929832309,-1708.61,0.00014249,2]
[391859758,1760929832319,-578.20924308,0.00014249,2]
[391859759,1760929832328,-500.0,0.00014249,2]
[391859760,1760929832337,-500.0,0.00014249,2]
[391859761,1760929832346,-500.0,0.00014249,2]
[391859762,1760929832356,-500.0,0.00014249,2]
[391859763,1760929832365,-500.0,0.00014249,2]
[391859764,1760929832374,-500.0,0.00014249,2]
[391859765,1760929832384,-500.0,0.00014249,2]
[391859766,1760929832394,-500.0,0.00014249,2]
[391859767,1760929832403,-500.0,0.00014249,2]
[391859768,1760929832412,-500.0,0.00014249,2]
[391859770,1760929832421,-500.0,0.00014249,2]
[391859771,1760929832431,-166.66,0.00014339,2]
[391859773,1760929832440,-1602.0,0.00014413,2]
[391859775,1760929832450,-483.38515251,0.00014468,2]
[391859777,1760929832459,-500.0,0.00014468,2]
[391859780,1760929832470,-500.0,0.00014468,2]
[391859781,1760929832479,-500.0,0.00014468,2]
[391859783,1760929832489,-1602.0,0.00014469,2]
[391859785,1760929832498,-1708.61,0.00014523,2]
[391859788,1760929832508,-166.66,0.00014552,2]
[391859790,1760929832518,-695.04359314,0.0001457,2]
[391859792,1760929832527,-200.0,0.00014662,2]
[391859793,1760929832537,-165.71,0.000147,2]
[391859795,1760929832546,-266.93,0.00014759,2]
[391859797,1760929832555,-166.66,0.00014766,2]
[391859800,1760929832565,-1708.61,0.00014797,2]
[391859803,1760929832574,-1602.0,0.00014854,2]
[391859806,1760929832583,-33141.5314,0.000149,2]
[391859809,1760929832592,-1000.0,0.000149,2]
[391859812,1760929832601,-247.44844968,0.000149,2]
[391859815,1760929832611,-614.4322,0.000149,2]
[391859818,1760929832620,-2133.5647,0.000149,2]
[391859821,1760929832629,-233.541,0.000149,2]
[391859823,1760929832639,-4692.73270626,0.000149,2]
[391859826,1760929832651,-307.26729374,0.000149,2]
[391859828,1760929832661,-229.74019763,0.000149,2]
[391859830,1760929832670,-196.46680172,0.000149,2]
[391859841,1760929838089,-500.0,0.00014468,2]
[391859842,1760929838102,-500.0,0.00014468,2]
[391859843,1760929838111,-286.86674357,0.00014468,2]
[391859844,1760929838301,-6.01378564,0.00014468,2]
[391859845,1760929838310,-423.10263906,0.00014468,2]
[391859847,1760929840179,-76.89736094,0.00014468,2]
[391859848,1760929840188,-500.0,0.00014468,2]
[391859849,1760929840197,-225.09593215,0.00014468,2]
[391859851,1760929840485,-1.6e-07,0.00014468,2]
[391859852,1760929840497,-274.90406769,0.00014468,2]
[391859853,1760929840507,-500.0,0.00014468,2]
[391859854,1760929840516,-500.0,0.00014468,2]
[391859855,1760929840525,-500.0,0.00014468,2]
[391859856,1760929840534,-500.0,0.00014468,2]
[391859857,1760929840543,-500.0,0.00014468,2]
[391859858,1760929840553,-500.0,0.00014468,2]
[391859859,1760929840567,-500.0,0.00014468,2]
[391859860,1760929840577,-500.0,0.00014468,2]
[391859861,1760929840586,-500.0,0.00014468,2]
[391859862,1760929840595,-500.0,0.00014468,2]
[391859863,1760929840604,-500.0,0.00014468,2]
[391859864,1760929840614,-500.0,0.00014468,2]
[391859865,1760929840624,-500.0,0.00014468,2]
[391859866,1760929840633,-500.0,0.00014468,2]
[391859867,1760929840642,-500.0,0.00014468,2]
[391859868,1760929840651,-2303.53319828,0.000149,2]
[391859869,1760929840661,-500.0,0.00014973,2]
[391859870,1760929840671,-500.0,0.00014973,2]
[391859871,1760929840680,-194.88532089,0.0001499,2]
[391859872,1760929840689,-476.89841583,0.00014999,2]
[391859873,1760929840698,-500.0,0.00014999,2]
[391859874,1760929840707,-150.0,0.00014999,2]
[391859875,1760929840717,-150.0,0.00014999,2]
[391859876,1760929840726,-617.0,0.00014999,2]
[391859877,1760929840734,-500.0,0.00014999,2]
[391859878,1760929840743,-258.24662432,0.00014999,2]
[391859879,1760929840752,-761.0,0.00014999,2]
[391859880,1760929840761,-516.0,0.00014999,2]
[391859881,1760929840771,-150.0,0.00014999,2]
[391859882,1760929840779,-928.0,0.00014999,2]
[391859883,1760929840789,-500.0,0.00014999,2]
[391859884,1760929840799,-1380908.45593248,0.00015,2]
[391859885,1760929840807,-2811.29,0.00015,10]
[391859886,1760929840816,-1145.39422586,0.00015,10]
[391859887,1760929840825,-166079.51583776,0.00015,2]
[391859894,1760929843345,-689.3421221,0.00015,2]
[391859895,1760929843355,-2746.231,0.00015,2]
[391859896,1760929843400,-440.58690012,0.00015,2]
[391859897,1760929843411,-1616.62279374,0.00015,2]
[391859902,1760929846589,-383.32467953,0.00015,2]
[391859958,1760930324454,250.0,0.00013993,7]
[391859973,1760930456194,1000.0,0.00034308,30]
[391859979,1760930480722,1000.0,0.00034308,30]
[391859991,1760930492709,1000.0,0.00034308,30]
[391859993,1760930499449,1000.0,0.00034308,30]
[391860014,1760930520020,1000.0,0.00034308,30]
[391860018,1760930527550,1000.0,0.00034308,30]
[391860032,1760930536420,-289.42077271,0.00013699,2]
[391860034,1760930538172,1000.0,0.00034308,120]
[391860035,1760930549180,1000.0,0.00034308,120]
[391860081,1760930557202,1000.0,0.00034308,120]
[391860108,1760930564517,1000.0,0.00034308,120]
[391860237,1760930835424,-122.05922729,0.00013699,2]
[391860238,1760930835445,-195.0,0.00013719,2]
[391860239,1760930835466,-91.27973703,0.0001374,2]
[391860321,1760931032368,-164.53424827,0.0001374,2]
[391860322,1760931032378,-195.0,0.00013751,2]
[391860323,1760931032388,-250.0,0.00013761,2]
[391860324,1760931032397,-361.35469139,0.00013782,2]
[391860325,1760931032406,-1194.68,0.00013822,2]
[391860326,1760931032415,-1000.0,0.00013853,2]
[391860327,1760931032425,-2751.0,0.00013875,2]
[391860328,1760931032435,-215.65,0.00013944,2]
[391860329,1760931032444,-1217.03,0.00014032,2]
[391860330,1760931032454,-166.26,0.00014244,2]
[391860331,1760931032464,-1200.0,0.00014248,2]
[391860332,1760931032474,-313.61275721,0.00014249,2]
[391860333,1760931032483,-578.20924308,0.00014249,2]
[391860334,1760931032492,-300.0,0.00014524,2]
[391860335,1760931032501,-300.0,0.00014524,2]
[391860336,1760931032511,-12150.67,0.00014526,2]
[391860337,1760931032520,-624.49,0.00014569,2]
[391860338,1760931032530,-365.0,0.00014601,2]
[391860339,1760931032539,-310.62,0.00014644,2]
[391860340,1760931032549,-759.19388107,0.00014661,2]
[391860341,1760931032559,-365.0,0.00014744,2]
[391860342,1760931032568,-834.2312,0.000148,2]
[391860343,1760931032577,-441.63133567,0.000148,2]
[391860344,1760931032586,-441.6313356,0.00014811,2]
[391860345,1760931032596,-441.6313356,0.00014822,2]
[391860346,1760931032605,-441.6313356,0.00014833,2]
[391860347,1760931032614,-441.6313356,0.00014844,2]
[391860348,1760931032624,-660.573,0.00014849,2]
[391860349,1760931032634,-441.6313356,0.00014856,2]
[391860350,1760931032643,-441.6313356,0.00014867,2]
[391860351,1760931032653,-150.0,0.0001489,2]
[391860352,1760931032662,-1388.25,0.00014891,2]
[391860353,1760931032672,-151.0,0.00014891,2]
[391860354,1760931032683,-151.0,0.00014891,2]
[391860355,1760931032692,-151.0,0.00014891,2]
[391860356,1760931032703,-151.0,0.00014891,2]
[391860357,1760931032713,-151.0,0.00014891,2]
[391860358,1760931032722,-151.0,0.00014891,2]
[391860359,1760931032731,-151.0,0.00014891,2]
[391860360,1760931032741,-151.0,0.00014891,2]
[391860362,1760931032751,-151.0,0.00014891,2]
[391860363,1760931032764,-151.0,0.00014891,2]
[391860365,1760931032773,-151.0,0.00014891,2]
[391860367,1760931032783,-151.0,0.00014891,2]
[391860369,1760931032792,-151.0,0.00014891,2]
[391860370,1760931032802,-151.0,0.00014891,2]
[391860371,1760931032812,-151.0,0.00014891,2]
[391860372,1760931032821,-151.0,0.00014891,2]
[391860373,1760931032833,-151.0,0.00014891,2]
[391860374,1760931032842,-151.0,0.00014891,2]
[391860375,1760931032852,-262.42003169,0.00014891,2]
[391860376,1760931032861,-500.0,0.00014891,2]
[391860377,1760931032870,-500.0,0.00014891,2]
[391860378,1760931032879,-500.0,0.00014891,2]
[391860379,1760931032888,-500.0,0.00014891,2]
[391860380,1760931032897,-500.0,0.00014891,2]
[391860381,1760931032907,-500.0,0.00014891,2]
[391860382,1760931032916,-500.0,0.00014891,2]
[391860383,1760931032925,-500.0,0.00014891,2]
[391860384,1760931032934,-500.0,0.00014891,2]
[391860385,1760931032944,-500.0,0.00014891,2]
[391860386,1760931032953,-500.0,0.00014891,2]
[391860387,1760931032963,-500.0,0.00014891,2]
[391860388,1760931032973,-500.0,0.00014891,2]
[391860389,1760931032982,-500.0,0.00014891,2]
[391860390,1760931032992,-204.82751921,0.00014891,2]
[391860391,1760931033001,-2500.0,0.00014896,2]
[391860392,1760931033012,-167.49877312,0.00014896,2]
[391860393,1760931033021,-398.30917406,0.00014899,2]
[391860394,1760931033031,-506.15182524,0.00014899,2]
[391860395,1760931033040,-457.32706501,0.00014899,2]
[391860396,1760931033049,-500.0,0.00014899,2]
[391860397,1760931033058,-500.0,0.00014899,2]
[391860398,1760931033067,-500.0,0.00014899,2]
[391860399,1760931033076,-579.28805292,0.00014899,2]
[391860400,1760931033086,-500.0,0.00014899,2]
[391860401,1760931033095,-500.0,0.00014899,2]
[391860402,1760931033104,-500.0,0.00014899,2]
[391860403,1760931033114,-500.0,0.00014899,2]
[391860404,1760931033123,-500.0,0.00014899,2]
[391860405,1760931033133,-500.0,0.00014899,2]
[391860406,1760931033142,-500.0,0.00014899,2]
[391860407,1760931033151,-14229.2952,0.000149,2]
[391860408,1760931033161,-122052.9677,0.000149,2]
[391860409,1760931033171,-212.09867118,0.000149,2]
[391860410,1760931033180,-1000.0,0.000149,2]
[391860411,1760931033190,-5000.0,0.000149,2]
[391860412,1760931033199,-391.74856599,0.000149,2]
[391860413,1760931033209,-712.08130385,0.00014909,2]
[391860414,1760931033219,-365.0,0.00014941,2]
[391860415,1760931033228,-365.0,0.00014945,2]
[391860416,1760931033239,-501.52447615,0.00014973,2]
[391860417,1760931033249,-500.0,0.00014973,2]
[391860418,1760931033259,-500.0,0.00014973,2]
[391860419,1760931033270,-524.64646842,0.00014973,2]
[391860420,1760931033279,-275.67950373,0.00014973,2]
[391860421,1760931033290,-502.11325743,0.00014973,2]
[391860422,1760931033299,-504.88390725,0.00014973,2]
[391860423,1760931033309,-222.15573024,0.00014973,2]
[391860424,1760931033318,-500.0,0.00014973,2]
[391860425,1760931033327,-25291.23618807,0.00014979,2]
[391860426,1760931033337,-289.0813009,0.0001499,2]
[391860427,1760931033347,-289.0813009,0.0001499,2]
[391860428,1760931033356,-490.0,0.00014995,2]
[391860429,1760931033366,-500.0,0.00014995,2]
[391860430,1760931033381,-289.7298907,0.00014995,2]
[391860431,1760931033394,-500.0,0.00014995,2]
[391860432,1760931033404,-361.77304514,0.00014995,2]
[391860433,1760931033414,-500.0,0.00014995,2]
[391860434,1760931033423,-271.67374057,0.00014995,2]
[391860435,1760931033433,-500.0,0.00014995,2]
[391860436,1760931033442,-500.0,0.00014995,2]
[391860437,1760931033451,-584.28471481,0.00014995,2]
[391860438,1760931033462,-28351.7351323,0.00014996,2]
[391860439,1760931033471,-5796.8445124,0.00014996,2]
[391860440,1760931033481,-21100.0653306,0.00014996,2]
[391860441,1760931033490,-916.6593232,0.00014996,2]
[391860442,1760931033499,-69337.1128086,0.00014996,2]
[391860443,1760931033509,-73503.6499522,0.00014996,2]